[Event "January 9 Late 2024"]
[Site "https://www.chess.com"]
[Date "2024.01.09"]
[Round "8"]
[White "Pichot, Alan"]
[Black "Maksimovic, Bojan"]
[Result "0-1"]
[Board "39"]
[TimeControl "180+1"]
[WhiteFideId "110973"]
[BlackFideId "14408120"]
[WhiteElo "2846"]
[BlackElo "2845"]
[WhiteTeam "ESP"]
[BlackTeam "BIH"]
[WhiteClock "0:00:18"]
[BlackClock "0:00:06"]

1. e4 {[%clk 0:03:00]}  a6 {[%clk 0:03:00]} 2. d4 {[%clk 0:02:59]}  e6 {[%clk 0:03:01]} 3. Nf3 {[%clk 0:02:59]}  d5 {[%clk 0:03:02]} 4. e5 {[%clk 0:02:57]}  c5 {[%clk 0:03:02]} 5. c3 {[%clk 0:02:58]}  Bd7 {[%clk 0:03:02]} 6. Bd3 {[%clk 0:02:58]}  cxd4 {[%clk 0:03:03]} 7. cxd4 {[%clk 0:02:58]}  Bb5 {[%clk 0:03:04]} 8. O-O {[%clk 0:02:55]}  Nc6 {[%clk 0:03:04]} 9. Bxb5 {[%clk 0:02:53]}  axb5 {[%clk 0:03:05]} 10. Nc3 {[%clk 0:02:53]}  Qb6 {[%clk 0:02:59]} 11. h4 {[%clk 0:02:49]}  Nge7 {[%clk 0:02:49]} 12. Ne2 {[%clk 0:02:46]}  b4 {[%clk 0:01:47]} 13. Ng3 {[%clk 0:02:46]}  h5 {[%clk 0:01:34]} 14. Qd3 {[%clk 0:02:43]}  Qa6 {[%clk 0:01:29]} 15. Qc2 {[%clk 0:02:39]}  Rc8 {[%clk 0:01:22]} 16. Qd1 {[%clk 0:02:34]}  g6 {[%clk 0:01:17]} 17. Bg5 {[%clk 0:02:32]}  Nf5 {[%clk 0:01:06]} 18. Nxf5 {[%clk 0:02:30]}  gxf5 {[%clk 0:01:07]} 19. Bf6 {[%clk 0:02:13]}  Rh6 {[%clk 0:01:08]} 20. Ng5 {[%clk 0:01:52]}  Be7 {[%clk 0:01:06]} 21. Bxe7 {[%clk 0:01:41]}  Kxe7 {[%clk 0:01:07]} 22. a3 {[%clk 0:01:38]}  Qb6 {[%clk 0:01:01]} 23. Nf3 {[%clk 0:01:33]}  Rg6 {[%clk 0:00:55]} 24. axb4 {[%clk 0:01:21]}  Rg4 {[%clk 0:00:50]} 25. b5 {[%clk 0:01:20]}  Nxd4 {[%clk 0:00:47]} 26. Nxd4 {[%clk 0:01:15]}  Qxd4 {[%clk 0:00:35]} 27. Qxd4 {[%clk 0:01:11]}  Rxd4 {[%clk 0:00:36]} 28. Ra7 {[%clk 0:01:11]}  Rc7 {[%clk 0:00:36]} 29. b6 {[%clk 0:01:04]}  Rd7 {[%clk 0:00:36]} 30. Ra8 {[%clk 0:01:04]}  Rb4 {[%clk 0:00:31]} 31. Rc1 {[%clk 0:01:03]}  f6 {[%clk 0:00:18]} 32. exf6+ {[%clk 0:00:49]}  Kxf6 {[%clk 0:00:19]} 33. Rc7 {[%clk 0:00:49]}  Rf7 {[%clk 0:00:19]} 34. Rh8 {[%clk 0:00:41]}  Rxb6 {[%clk 0:00:19]} 35. Rc2 {[%clk 0:00:30]}  Kg6 {[%clk 0:00:18]} 36. Rg8+ {[%clk 0:00:27]}  Rg7 {[%clk 0:00:19]} 37. Rf8 {[%clk 0:00:27]}  Rf7 {[%clk 0:00:19]} 38. Rg8+ {[%clk 0:00:28]}  Rg7 {[%clk 0:00:20]} 39. Rf8 {[%clk 0:00:28]}  Rc6 {[%clk 0:00:17]} 40. Rxc6 {[%clk 0:00:23]}  bxc6 {[%clk 0:00:17]} 41. Rc8 {[%clk 0:00:23]}  Rb7 {[%clk 0:00:17]} 42. Rxc6 {[%clk 0:00:24]}  Kf6 {[%clk 0:00:17]} 43. Rc2 {[%clk 0:00:24]}  Rb4 {[%clk 0:00:14]} 44. g3 {[%clk 0:00:23]}  f4 {[%clk 0:00:14]} 45. Kg2 {[%clk 0:00:21]}  Kf5 {[%clk 0:00:15]} 46. Kf3 {[%clk 0:00:21]}  Rb3+ {[%clk 0:00:15]} 47. Kg2 {[%clk 0:00:21]}  fxg3 {[%clk 0:00:14]} 48. fxg3 {[%clk 0:00:21]}  e5 {[%clk 0:00:10]} 49. Re2 {[%clk 0:00:17]}  e4 {[%clk 0:00:10]} 50. Rf2+ {[%clk 0:00:18]}  Ke5 {[%clk 0:00:10]} 51. g4 {[%clk 0:00:19]}  hxg4 {[%clk 0:00:10]} 52. h5 {[%clk 0:00:19]}  Rh3 {[%clk 0:00:09]} 53. b4 {[%clk 0:00:18]}  Rxh5 {[%clk 0:00:09]} 54. b5 {[%clk 0:00:19]}  Rh6 {[%clk 0:00:08]} 55. Rb2 {[%clk 0:00:19]}  Rb6 {[%clk 0:00:09]} 56. Kg3 {[%clk 0:00:20]}  Kd4 {[%clk 0:00:09]} 57. Kxg4 {[%clk 0:00:20]}  Kc4 {[%clk 0:00:09]} 58. Kf4 {[%clk 0:00:20]}  Rxb5 {[%clk 0:00:09]} 59. Rd2 {[%clk 0:00:21]}  Rb8 {[%clk 0:00:07]} 60. Ke3 {[%clk 0:00:20]}  Rb3+ {[%clk 0:00:07]} 61. Kf4 {[%clk 0:00:21]}  Rd3 {[%clk 0:00:07]} 62. Ra2 {[%clk 0:00:20]}  Kd4 {[%clk 0:00:06]} 63. Ra4+ {[%clk 0:00:19]}  Kc5 {[%clk 0:00:06]} 64. Ra3 {[%clk 0:00:18]}  Rxa3 {[%clk 0:00:06]} 0-1

[Event "January 9 Late 2024"]
[Site "https://www.chess.com"]
[Date "2024.01.09"]
[Round "8"]
[White "Luukkonen, Tommi"]
[Black "Hess, Robert"]
[Result "0-1"]
[Board "41"]
[TimeControl "180+1"]
[WhiteFideId "501808"]
[BlackFideId "2022036"]
[WhiteElo "2413"]
[BlackElo "2908"]
[WhiteTeam "FIN"]
[BlackTeam "USA"]
[WhiteClock "0:00:00"]
[BlackClock "0:00:04"]

1. d4 {[%clk 0:03:00]}  d6 {[%clk 0:02:59]} 2. e4 {[%clk 0:03:00]}  c6 {[%clk 0:03:00]} 3. Nc3 {[%clk 0:02:59]}  Qc7 {[%clk 0:03:00]} 4. f4 {[%clk 0:02:58]}  e5 {[%clk 0:03:01]} 5. Nf3 {[%clk 0:02:57]}  Bg4 {[%clk 0:03:01]} 6. Be3 {[%clk 0:02:56]}  Nd7 {[%clk 0:03:00]} 7. h3 {[%clk 0:02:55]}  Bh5 {[%clk 0:03:00]} 8. g4 {[%clk 0:02:49]}  exf4 {[%clk 0:03:00]} 9. Bxf4 {[%clk 0:02:50]}  Bg6 {[%clk 0:03:01]} 10. Bg2 {[%clk 0:02:48]}  Qb6 {[%clk 0:02:52]} 11. O-O {[%clk 0:02:46]}  Be7 {[%clk 0:02:50]} 12. Qd2 {[%clk 0:02:45]}  Ngf6 {[%clk 0:02:47]} 13. Kh2 {[%clk 0:02:45]}  Nxe4 {[%clk 0:02:13]} 14. Nxe4 {[%clk 0:02:44]}  Bxe4 {[%clk 0:02:13]} 15. Rae1 {[%clk 0:02:45]}  d5 {[%clk 0:02:14]} 16. Ng5 {[%clk 0:02:44]}  Bxg5 {[%clk 0:02:07]} 17. Bxe4 {[%clk 0:02:40]}  Bxf4+ {[%clk 0:01:57]} 18. Qxf4 {[%clk 0:02:35]}  O-O {[%clk 0:01:56]} 19. Bd3 {[%clk 0:02:26]}  Nf6 {[%clk 0:01:49]} 20. b3 {[%clk 0:02:25]}  Qd8 {[%clk 0:01:41]} 21. Qf5 {[%clk 0:02:24]}  h6 {[%clk 0:01:29]} 22. g5 {[%clk 0:02:24]}  hxg5 {[%clk 0:01:20]} 23. Qxg5 {[%clk 0:02:24]}  Qd6+ {[%clk 0:01:09]} 24. Kh1 {[%clk 0:02:23]}  Rae8 {[%clk 0:01:05]} 25. Rg1 {[%clk 0:02:22]}  Ng4 {[%clk 0:00:29]} 26. Qxg4 {[%clk 0:02:14]}  g6 {[%clk 0:00:29]} 27. Qg5 {[%clk 0:02:08]}  Kg7 {[%clk 0:00:24]} 28. Re5 {[%clk 0:02:05]}  Rh8 {[%clk 0:00:19]} 29. h4 {[%clk 0:01:50]}  Rxe5 {[%clk 0:00:11]} 30. dxe5 {[%clk 0:01:49]}  Qe6 {[%clk 0:00:11]} 31. Rg3 {[%clk 0:01:46]}  Kf8 {[%clk 0:00:10]} 32. Rf3 {[%clk 0:01:32]}  Rh5 {[%clk 0:00:08]} 33. Qd8+ {[%clk 0:01:32]}  Kg7 {[%clk 0:00:08]} 34. Qf6+ {[%clk 0:01:33]}  Qxf6 {[%clk 0:00:09]} 35. exf6+ {[%clk 0:01:32]}  Kh6 {[%clk 0:00:07]} 36. Rh3 {[%clk 0:01:04]}  Re5 {[%clk 0:00:07]} 37. Kg2 {[%clk 0:01:02]}  Kh5 {[%clk 0:00:08]} 38. Kh2 {[%clk 0:00:47]}  Re6 {[%clk 0:00:07]} 39. Rf3 {[%clk 0:00:44]}  Kg4 {[%clk 0:00:07]} 40. Kg2 {[%clk 0:00:42]}  Re8 {[%clk 0:00:06]} 41. Rg3+ {[%clk 0:00:37]}  Kxh4 {[%clk 0:00:06]} 42. c4 {[%clk 0:00:29]}  Re6 {[%clk 0:00:05]} 43. cxd5 {[%clk 0:00:29]}  cxd5 {[%clk 0:00:06]} 44. Rf3 {[%clk 0:00:30]}  Kg5 {[%clk 0:00:07]} 45. Bb5 {[%clk 0:00:16]}  Rxf6 {[%clk 0:00:07]} 46. Rd3 {[%clk 0:00:16]}  Rd6 {[%clk 0:00:07]} 47. Bc4 {[%clk 0:00:16]}  d4 {[%clk 0:00:07]} 48. a4 {[%clk 0:00:15]}  f5 {[%clk 0:00:06]} 49. Kf3 {[%clk 0:00:15]}  Kf6 {[%clk 0:00:07]} 50. b4 {[%clk 0:00:13]}  g5 {[%clk 0:00:07]} 51. b5 {[%clk 0:00:12]}  Ke5 {[%clk 0:00:08]} 52. Rd2 {[%clk 0:00:12]}  Rh6 {[%clk 0:00:05]} 53. Re2+ {[%clk 0:00:12]}  Kd6 {[%clk 0:00:06]} 54. Rg2 {[%clk 0:00:11]}  Rh3+ {[%clk 0:00:05]} 55. Ke2 {[%clk 0:00:11]}  Re3+ {[%clk 0:00:05]} 56. Kd2 {[%clk 0:00:12]}  g4 {[%clk 0:00:06]} 57. Bd3 {[%clk 0:00:12]}  Ke5 {[%clk 0:00:06]} 58. Rh2 {[%clk 0:00:10]}  Kf4 {[%clk 0:00:05]} 59. Rh5 {[%clk 0:00:09]}  Re5 {[%clk 0:00:05]} 60. Rh7 {[%clk 0:00:05]}  g3 {[%clk 0:00:05]} 61. Rxb7 {[%clk 0:00:05]}  Kf3 {[%clk 0:00:05]} 62. Rxa7 {[%clk 0:00:04]}  g2 {[%clk 0:00:04]} 63. Rg7 {[%clk 0:00:04]}  Kf2 {[%clk 0:00:04]} 64. b6 {[%clk 0:00:04]}  Re7 {[%clk 0:00:03]} 65. Rg6 {[%clk 0:00:03]}  f4 {[%clk 0:00:03]} 66. a5 {[%clk 0:00:02]}  f3 {[%clk 0:00:04]} 67. a6 {[%clk 0:00:00]}  Re6 {[%clk 0:00:04]} 0-1

[Event "January 9 Late 2024"]
[Site "https://www.chess.com"]
[Date "2024.01.09"]
[Round "8"]
[White "Sieciechowicz, Marcin"]
[Black "Troff, Kayden"]
[Result "0-1"]
[Board "44"]
[TimeControl "180+1"]
[WhiteFideId "1130170"]
[BlackFideId "2047896"]
[WhiteElo "2697"]
[BlackElo "2830"]
[WhiteTeam "POL"]
[BlackTeam "USA"]
[WhiteClock "0:00:00"]
[BlackClock "0:00:05"]

1. d4 {[%clk 0:03:00]}  Nf6 {[%clk 0:02:59]} 2. Bf4 {[%clk 0:03:00]}  g6 {[%clk 0:02:57]} 3. e3 {[%clk 0:02:59]}  Bg7 {[%clk 0:02:58]} 4. Nf3 {[%clk 0:03:00]}  d5 {[%clk 0:02:58]} 5. Bd3 {[%clk 0:02:59]}  O-O {[%clk 0:02:57]} 6. h3 {[%clk 0:02:52]}  c5 {[%clk 0:02:57]} 7. c3 {[%clk 0:02:52]}  Nc6 {[%clk 0:02:56]} 8. O-O {[%clk 0:02:52]}  Qb6 {[%clk 0:02:56]} 9. Qb3 {[%clk 0:02:39]}  c4 {[%clk 0:02:56]} 10. Qxb6 {[%clk 0:02:40]}  axb6 {[%clk 0:02:57]} 11. Be2 {[%clk 0:02:39]}  b5 {[%clk 0:02:58]} 12. a3 {[%clk 0:02:39]}  b4 {[%clk 0:02:58]} 13. cxb4 {[%clk 0:02:40]}  Nxb4 {[%clk 0:02:59]} 14. Nc3 {[%clk 0:02:40]}  Nc6 {[%clk 0:02:48]} 15. Ne5 {[%clk 0:02:37]}  Na5 {[%clk 0:02:37]} 16. Bf3 {[%clk 0:02:34]}  Rd8 {[%clk 0:02:33]} 17. Rad1 {[%clk 0:02:27]}  Bf5 {[%clk 0:02:31]} 18. g4 {[%clk 0:02:23]}  Be4 {[%clk 0:01:49]} 19. Be2 {[%clk 0:02:08]}  Nb3 {[%clk 0:01:45]} 20. g5 {[%clk 0:02:02]}  Nd7 {[%clk 0:01:05]} 21. Nxf7 {[%clk 0:02:00]}  Kxf7 {[%clk 0:00:56]} 22. Nxe4 {[%clk 0:02:00]}  Nb6 {[%clk 0:00:30]} 23. Nc3 {[%clk 0:01:57]}  Rac8 {[%clk 0:00:28]} 24. Bg3 {[%clk 0:01:37]}  e6 {[%clk 0:00:27]} 25. Kg2 {[%clk 0:01:33]}  Rc6 {[%clk 0:00:27]} 26. h4 {[%clk 0:01:27]}  Nc8 {[%clk 0:00:27]} 27. h5 {[%clk 0:01:22]}  Ne7 {[%clk 0:00:26]} 28. h6 {[%clk 0:01:11]}  Bh8 {[%clk 0:00:21]} 29. Bf4 {[%clk 0:01:08]}  Nf5 {[%clk 0:00:20]} 30. Bg4 {[%clk 0:00:57]}  Rb6 {[%clk 0:00:19]} 31. Rfe1 {[%clk 0:00:55]}  Rd7 {[%clk 0:00:16]} 32. e4 {[%clk 0:00:50]}  dxe4 {[%clk 0:00:16]} 33. Rxe4 {[%clk 0:00:47]}  Rxd4 {[%clk 0:00:16]} 34. Rde1 {[%clk 0:00:34]}  Rxe4 {[%clk 0:00:15]} 35. Nxe4 {[%clk 0:00:35]}  Nbd4 {[%clk 0:00:13]} 36. Bc1 {[%clk 0:00:28]}  Nb3 {[%clk 0:00:10]} 37. Nd2 {[%clk 0:00:13]}  Nxc1 {[%clk 0:00:10]} 38. Rxc1 {[%clk 0:00:12]}  Rc6 {[%clk 0:00:08]} 39. Rxc4 {[%clk 0:00:10]}  Bxb2 {[%clk 0:00:08]} 40. Rxc6 {[%clk 0:00:10]}  bxc6 {[%clk 0:00:09]} 41. Nc4 {[%clk 0:00:10]}  Bd4 {[%clk 0:00:09]} 42. a4 {[%clk 0:00:09]}  Ke7 {[%clk 0:00:07]} 43. a5 {[%clk 0:00:06]}  Nd6 {[%clk 0:00:07]} 44. Nxd6 {[%clk 0:00:04]}  Kxd6 {[%clk 0:00:08]} 45. Kf3 {[%clk 0:00:02]}  c5 {[%clk 0:00:07]} 46. Ke2 {[%clk 0:00:02]}  c4 {[%clk 0:00:08]} 47. Bf3 {[%clk 0:00:01]}  Kc7 {[%clk 0:00:05]} 48. Be4 {[%clk 0:00:00]}  Be5 {[%clk 0:00:05]} 0-1

[Event "January 9 Late 2024"]
[Site "https://www.chess.com"]
[Date "2024.01.09"]
[Round "8"]
[White "Manolache, Marius"]
[Black "Rustemov, Alexander"]
[Result "1/2-1/2"]
[Board "45"]
[TimeControl "180+1"]
[WhiteFideId "1201530"]
[BlackFideId "4119002"]
[WhiteElo "2695"]
[BlackElo "2814"]
[WhiteTeam "ROU"]
[BlackTeam "RUS"]
[WhiteClock "0:01:01"]
[BlackClock "0:00:36"]

1. d4 {[%clk 0:03:00]}  d5 {[%clk 0:02:58]} 2. Nf3 {[%clk 0:03:00]}  Nf6 {[%clk 0:02:57]} 3. c4 {[%clk 0:03:00]}  c6 {[%clk 0:02:57]} 4. e3 {[%clk 0:03:00]}  Bg4 {[%clk 0:02:56]} 5. Nc3 {[%clk 0:02:59]}  e6 {[%clk 0:02:56]} 6. a3 {[%clk 0:02:59]}  Nbd7 {[%clk 0:02:55]} 7. h3 {[%clk 0:02:59]}  Bh5 {[%clk 0:02:53]} 8. cxd5 {[%clk 0:02:59]}  exd5 {[%clk 0:02:53]} 9. Bd3 {[%clk 0:02:59]}  Bd6 {[%clk 0:02:52]} 10. Qc2 {[%clk 0:02:58]}  Bg6 {[%clk 0:02:48]} 11. O-O {[%clk 0:02:54]}  O-O {[%clk 0:02:47]} 12. Re1 {[%clk 0:02:53]}  Re8 {[%clk 0:02:47]} 13. Bxg6 {[%clk 0:02:52]}  hxg6 {[%clk 0:02:47]} 14. Nd2 {[%clk 0:02:48]}  Nf8 {[%clk 0:02:43]} 15. e4 {[%clk 0:02:40]}  dxe4 {[%clk 0:02:42]} 16. Ndxe4 {[%clk 0:02:39]}  Nxe4 {[%clk 0:02:40]} 17. Rxe4 {[%clk 0:02:39]}  Nd7 {[%clk 0:02:28]} 18. Be3 {[%clk 0:02:30]}  Nf6 {[%clk 0:02:26]} 19. Rxe8+ {[%clk 0:02:29]}  Qxe8 {[%clk 0:02:26]} 20. Qb3 {[%clk 0:02:29]}  Qd7 {[%clk 0:02:26]} 21. Rd1 {[%clk 0:02:29]}  Nd5 {[%clk 0:02:07]} 22. Nxd5 {[%clk 0:02:26]}  cxd5 {[%clk 0:02:08]} 23. Kf1 {[%clk 0:02:21]}  Be7 {[%clk 0:01:53]} 24. Rc1 {[%clk 0:02:17]}  a6 {[%clk 0:01:25]} 25. Qc2 {[%clk 0:01:57]}  Bd6 {[%clk 0:01:22]} 26. Qb3 {[%clk 0:01:57]}  Qb5+ {[%clk 0:01:13]} 27. Qxb5 {[%clk 0:01:57]}  axb5 {[%clk 0:01:14]} 28. Bd2 {[%clk 0:01:54]}  Kf8 {[%clk 0:01:03]} 29. Ke2 {[%clk 0:01:50]}  Ke7 {[%clk 0:01:03]} 30. Kd3 {[%clk 0:01:51]}  Kd7 {[%clk 0:01:02]} 31. Bb4 {[%clk 0:01:39]}  Bxb4 {[%clk 0:00:59]} 32. axb4 {[%clk 0:01:39]}  b6 {[%clk 0:00:59]} 33. Re1 {[%clk 0:01:37]}  f6 {[%clk 0:00:57]} 34. h4 {[%clk 0:01:33]}  Kd6 {[%clk 0:00:48]} 35. Re3 {[%clk 0:01:28]}  Rh8 {[%clk 0:00:44]} 36. Rg3 {[%clk 0:01:13]}  Rh6 {[%clk 0:00:43]} 37. Rg4 {[%clk 0:01:14]}  Ke6 {[%clk 0:00:43]} 38. g3 {[%clk 0:01:13]}  Kf7 {[%clk 0:00:42]} 39. Rf4 {[%clk 0:01:12]}  Rh8 {[%clk 0:00:42]} 40. Rf3 {[%clk 0:01:12]}  Rc8 {[%clk 0:00:41]} 41. Re3 {[%clk 0:01:08]}  Rc4 {[%clk 0:00:40]} 42. b3 {[%clk 0:01:07]}  Rc1 {[%clk 0:00:40]} 43. Re2 {[%clk 0:01:07]}  Rb1 {[%clk 0:00:39]} 44. Kc3 {[%clk 0:01:04]}  Rc1+ {[%clk 0:00:36]} 45. Kd3 {[%clk 0:01:01]}  Rb1 {[%clk 0:00:36]} 46. Kc3 {[%clk 0:01:01]}  Rc1+ {[%clk 0:00:36]} 47. Kd3 {[%clk 0:01:01]} 1/2-1/2

[Event "January 9 Late 2024"]
[Site "https://www.chess.com"]
[Date "2024.01.09"]
[Round "8"]
[White "Vestby-Ellingsen, Mads"]
[Black "Ghasi, Ameet K"]
[Result "1-0"]
[Board "47"]
[TimeControl "180+1"]
[WhiteFideId "1520857"]
[BlackFideId "409200"]
[WhiteElo "2671"]
[BlackElo "2765"]
[WhiteTeam "NOR"]
[BlackTeam "ENG"]
[WhiteClock "0:00:04"]
[BlackClock "0:00:00"]

1. d4 {[%clk 0:03:00]}  Nf6 {[%clk 0:02:59]} 2. c4 {[%clk 0:03:01]}  g6 {[%clk 0:02:59]} 3. Nc3 {[%clk 0:03:02]}  Bg7 {[%clk 0:03:00]} 4. e4 {[%clk 0:03:02]}  O-O {[%clk 0:02:59]} 5. Nf3 {[%clk 0:02:53]}  d6 {[%clk 0:02:59]} 6. Be2 {[%clk 0:02:51]}  e5 {[%clk 0:02:58]} 7. O-O {[%clk 0:02:52]}  Bg4 {[%clk 0:02:59]} 8. Be3 {[%clk 0:02:49]}  Bxf3 {[%clk 0:02:57]} 9. Bxf3 {[%clk 0:02:41]}  exd4 {[%clk 0:02:57]} 10. Bxd4 {[%clk 0:02:41]}  Nc6 {[%clk 0:02:58]} 11. Be3 {[%clk 0:02:41]}  Re8 {[%clk 0:02:59]} 12. h3 {[%clk 0:02:35]}  Nd7 {[%clk 0:02:57]} 13. Qd2 {[%clk 0:02:24]}  Nc5 {[%clk 0:02:57]} 14. Rfe1 {[%clk 0:02:18]}  Bxc3 {[%clk 0:02:33]} 15. Qxc3 {[%clk 0:02:17]}  Nxe4 {[%clk 0:02:31]} 16. Qc2 {[%clk 0:02:17]}  Nc5 {[%clk 0:02:17]} 17. Bxc6 {[%clk 0:02:15]}  bxc6 {[%clk 0:02:16]} 18. Bxc5 {[%clk 0:02:14]}  dxc5 {[%clk 0:02:08]} 19. Rxe8+ {[%clk 0:02:07]}  Qxe8 {[%clk 0:02:09]} 20. Kf1 {[%clk 0:01:58]}  Qe5 {[%clk 0:02:03]} 21. g3 {[%clk 0:01:46]}  Rb8 {[%clk 0:01:59]} 22. Rb1 {[%clk 0:01:40]}  Re8 {[%clk 0:01:36]} 23. Rd1 {[%clk 0:01:28]}  h5 {[%clk 0:01:35]} 24. h4 {[%clk 0:01:24]}  Re7 {[%clk 0:01:33]} 25. b3 {[%clk 0:01:12]}  Kh7 {[%clk 0:01:33]} 26. Qd3 {[%clk 0:01:06]}  Qb2 {[%clk 0:01:29]} 27. Qd2 {[%clk 0:01:03]}  Qe5 {[%clk 0:01:27]} 28. Qd3 {[%clk 0:00:44]}  Re6 {[%clk 0:01:23]} 29. Kg2 {[%clk 0:00:40]}  Rf6 {[%clk 0:01:19]} 30. Rd2 {[%clk 0:00:37]}  Rd6 {[%clk 0:01:15]} 31. Qc2 {[%clk 0:00:34]}  Rd4 {[%clk 0:01:13]} 32. Re2 {[%clk 0:00:33]}  Qd6 {[%clk 0:01:11]} 33. Qc3 {[%clk 0:00:31]}  Rd3 {[%clk 0:00:57]} 34. Qc1 {[%clk 0:00:24]}  Qf6 {[%clk 0:00:51]} 35. Re3 {[%clk 0:00:20]}  Rd4 {[%clk 0:00:36]} 36. Rf3 {[%clk 0:00:20]}  Qd6 {[%clk 0:00:35]} 37. Rxf7+ {[%clk 0:00:19]}  Kg8 {[%clk 0:00:35]} 38. Rf3 {[%clk 0:00:19]}  Rd3 {[%clk 0:00:23]} 39. Rxd3 {[%clk 0:00:12]}  Qxd3 {[%clk 0:00:23]} 40. Qf4 {[%clk 0:00:13]}  Qd6 {[%clk 0:00:21]} 41. Qe4 {[%clk 0:00:10]}  Kf7 {[%clk 0:00:20]} 42. Qf3+ {[%clk 0:00:07]}  Kg7 {[%clk 0:00:20]} 43. Qe4 {[%clk 0:00:06]}  a5 {[%clk 0:00:19]} 44. Kf3 {[%clk 0:00:06]}  Qf6+ {[%clk 0:00:17]} 45. Kg2 {[%clk 0:00:04]}  Qd6 {[%clk 0:00:18]} 46. Qe3 {[%clk 0:00:04]}  Kf7 {[%clk 0:00:17]} 47. Qc3 {[%clk 0:00:04]}  Qd4 {[%clk 0:00:13]} 48. Qf3+ {[%clk 0:00:03]}  Qf6 {[%clk 0:00:05]} 49. Qxf6+ {[%clk 0:00:04]}  Kxf6 {[%clk 0:00:06]} 50. f3 {[%clk 0:00:02]}  Ke5 {[%clk 0:00:06]} 51. Kf2 {[%clk 0:00:02]}  Kd4 {[%clk 0:00:06]} 52. g4 {[%clk 0:00:02]}  Kc3 {[%clk 0:00:04]} 53. gxh5 {[%clk 0:00:03]}  gxh5 {[%clk 0:00:05]} 54. Ke3 {[%clk 0:00:03]}  Kb2 {[%clk 0:00:01]} 55. f4 {[%clk 0:00:03]}  Kxa2 {[%clk 0:00:02]} 56. f5 {[%clk 0:00:03]}  Kxb3 {[%clk 0:00:02]} 57. f6 {[%clk 0:00:04]}  a4 {[%clk 0:00:03]} 58. f7 {[%clk 0:00:04]}  a3 {[%clk 0:00:04]} 59. f8=Q {[%clk 0:00:05]}  a2 {[%clk 0:00:05]} 60. Qf6 {[%clk 0:00:04]}  Kxc4 {[%clk 0:00:05]} 61. Kd2 {[%clk 0:00:05]}  Kb3 {[%clk 0:00:06]} 62. Qc3+ {[%clk 0:00:05]}  Ka4 {[%clk 0:00:00]} 63. Qb2 {[%clk 0:00:04]} 1-0

[Event "January 9 Late 2024"]
[Site "https://www.chess.com"]
[Date "2024.01.09"]
[Round "8"]
[White "Goltsev, Dmitry"]
[Black "Zavgorodniy, Sergiy"]
[Result "1-0"]
[Board "48"]
[TimeControl "180+1"]
[WhiteFideId "24176710"]
[BlackFideId "14110148"]
[WhiteElo "2754"]
[BlackElo "2630"]
[WhiteTeam "RUS"]
[BlackTeam "UKR"]
[WhiteClock "0:00:52"]
[BlackClock "0:00:00"]

1. e4 {[%clk 0:02:59]}  c6 {[%clk 0:02:59]} 2. d4 {[%clk 0:02:59]}  d5 {[%clk 0:03:00]} 3. Nc3 {[%clk 0:03:00]}  dxe4 {[%clk 0:03:00]} 4. Nxe4 {[%clk 0:03:00]}  Bf5 {[%clk 0:03:00]} 5. Ng3 {[%clk 0:03:00]}  Bg6 {[%clk 0:03:01]} 6. Nh3 {[%clk 0:03:01]}  e6 {[%clk 0:02:58]} 7. Nf4 {[%clk 0:03:02]}  Bd6 {[%clk 0:02:58]} 8. c3 {[%clk 0:03:02]}  Qc7 {[%clk 0:02:53]} 9. Qf3 {[%clk 0:03:03]}  Bxf4 {[%clk 0:02:23]} 10. Bxf4 {[%clk 0:03:03]}  Qb6 {[%clk 0:02:23]} 11. O-O-O {[%clk 0:02:56]}  Nf6 {[%clk 0:02:22]} 12. h4 {[%clk 0:02:55]}  h6 {[%clk 0:02:22]} 13. h5 {[%clk 0:02:54]}  Bh7 {[%clk 0:02:22]} 14. Bc4 {[%clk 0:02:55]}  Nbd7 {[%clk 0:02:20]} 15. Rhe1 {[%clk 0:02:53]}  O-O {[%clk 0:02:16]} 16. Nf1 {[%clk 0:02:44]}  Nd5 {[%clk 0:02:13]} 17. Bd2 {[%clk 0:02:41]}  c5 {[%clk 0:01:30]} 18. Bxd5 {[%clk 0:02:35]}  exd5 {[%clk 0:01:31]} 19. Qxd5 {[%clk 0:02:35]}  Rad8 {[%clk 0:01:26]} 20. Be3 {[%clk 0:02:33]}  cxd4 {[%clk 0:01:15]} 21. Bxd4 {[%clk 0:02:33]}  Qa6 {[%clk 0:01:14]} 22. Ne3 {[%clk 0:02:04]}  Nb6 {[%clk 0:01:09]} 23. Qb3 {[%clk 0:02:03]}  Rc8 {[%clk 0:01:01]} 24. Bxb6 {[%clk 0:01:58]}  axb6 {[%clk 0:01:01]} 25. Nd5 {[%clk 0:01:59]}  Kh8 {[%clk 0:00:57]} 26. Re7 {[%clk 0:01:31]}  Rcd8 {[%clk 0:00:48]} 27. c4 {[%clk 0:01:19]}  b5 {[%clk 0:00:42]} 28. cxb5 {[%clk 0:01:12]}  Rc8+ {[%clk 0:00:31]} 29. Nc3 {[%clk 0:01:11]}  Qf6 {[%clk 0:00:28]} 30. Re2 {[%clk 0:00:59]}  Qf5 {[%clk 0:00:23]} 31. Rd5 {[%clk 0:00:58]}  Qb1+ {[%clk 0:00:19]} 32. Kd2 {[%clk 0:00:58]}  Qf1 {[%clk 0:00:19]} 33. f3 {[%clk 0:00:54]}  Rcd8 {[%clk 0:00:16]} 34. Qd1 {[%clk 0:00:52]}  Rxd5+ {[%clk 0:00:08]} 35. Nxd5 {[%clk 0:00:53]}  Qxd1+ {[%clk 0:00:04]} 36. Kxd1 {[%clk 0:00:54]}  Ra8 {[%clk 0:00:03]} 37. Nc3 {[%clk 0:00:52]}  f6 {[%clk 0:00:00]} 38. Re7 {[%clk 0:00:52]} 1-0

[Event "January 9 Late 2024"]
[Site "https://www.chess.com"]
[Date "2024.01.09"]
[Round "8"]
[White "Korchmar, Vasiliy"]
[Black "Dubnevych, Maksym"]
[Result "1-0"]
[Board "50"]
[TimeControl "180+1"]
[WhiteFideId "24131750"]
[BlackFideId "14184001"]
[WhiteElo "2749"]
[BlackElo "2563"]
[WhiteTeam "RUS"]
[BlackTeam "UKR"]
[WhiteClock "0:00:36"]
[BlackClock "0:00:04"]

1. e4 {[%clk 0:02:59]}  c5 {[%clk 0:02:57]} 2. d4 {[%clk 0:02:58]}  cxd4 {[%clk 0:02:56]} 3. Qxd4 {[%clk 0:02:59]}  Nc6 {[%clk 0:02:53]} 4. Qd3 {[%clk 0:02:59]}  g6 {[%clk 0:02:39]} 5. Nc3 {[%clk 0:02:59]}  Bg7 {[%clk 0:02:38]} 6. Nf3 {[%clk 0:03:00]}  d6 {[%clk 0:02:37]} 7. Be2 {[%clk 0:03:00]}  Nf6 {[%clk 0:02:36]} 8. O-O {[%clk 0:03:00]}  O-O {[%clk 0:02:36]} 9. Nd5 {[%clk 0:03:01]}  Nd7 {[%clk 0:02:34]} 10. c3 {[%clk 0:03:00]}  Nc5 {[%clk 0:02:33]} 11. Qc2 {[%clk 0:03:01]}  f5 {[%clk 0:02:32]} 12. exf5 {[%clk 0:03:01]}  gxf5 {[%clk 0:02:28]} 13. Bg5 {[%clk 0:02:53]}  Qd7 {[%clk 0:02:20]} 14. Bb5 {[%clk 0:02:52]}  e6 {[%clk 0:02:06]} 15. Nf4 {[%clk 0:02:43]}  Ne4 {[%clk 0:01:44]} 16. Rfe1 {[%clk 0:02:30]}  Qc7 {[%clk 0:01:38]} 17. Nh5 {[%clk 0:02:25]}  Bh8 {[%clk 0:01:06]} 18. Bh6 {[%clk 0:02:22]}  Qf7 {[%clk 0:01:00]} 19. Ng3 {[%clk 0:01:44]}  Nxg3 {[%clk 0:00:32]} 20. Bxf8 {[%clk 0:01:44]}  Ne4 {[%clk 0:00:33]} 21. Bh6 {[%clk 0:01:44]}  Qg6 {[%clk 0:00:33]} 22. Bf4 {[%clk 0:01:38]}  e5 {[%clk 0:00:33]} 23. Bg3 {[%clk 0:01:36]}  Be6 {[%clk 0:00:33]} 24. Bd3 {[%clk 0:01:33]}  d5 {[%clk 0:00:28]} 25. Nh4 {[%clk 0:01:15]}  Qg5 {[%clk 0:00:21]} 26. f3 {[%clk 0:01:15]}  Nxg3 {[%clk 0:00:20]} 27. hxg3 {[%clk 0:01:16]}  e4 {[%clk 0:00:19]} 28. Qf2 {[%clk 0:01:00]}  Re8 {[%clk 0:00:10]} 29. Bb5 {[%clk 0:00:57]}  a6 {[%clk 0:00:06]} 30. Ba4 {[%clk 0:00:58]}  Bf6 {[%clk 0:00:05]} 31. Rad1 {[%clk 0:00:56]}  Bd7 {[%clk 0:00:04]} 32. Bb3 {[%clk 0:00:56]}  Ne7 {[%clk 0:00:03]} 33. Bxd5+ {[%clk 0:00:54]}  Nxd5 {[%clk 0:00:04]} 34. Rxd5 {[%clk 0:00:54]}  Be6 {[%clk 0:00:04]} 35. Rc5 {[%clk 0:00:43]}  Be7 {[%clk 0:00:05]} 36. Re5 {[%clk 0:00:40]}  Bd6 {[%clk 0:00:05]} 37. R1xe4 {[%clk 0:00:38]}  fxe4 {[%clk 0:00:05]} 38. Rxg5+ {[%clk 0:00:37]}  Kh8 {[%clk 0:00:04]} 39. fxe4 {[%clk 0:00:36]} 1-0